bitfinex-derivatives/quotes_BTCF0:USTF0_20240815
["timestamp","ask_amount","ask_price","bid_price","bid_amount"]
[1723725848454,0.00025317,59234.0,59229.0,1.0606082]
[1723725848657,0.08,59240.0,59233.0,0.3608]
[1723725848865,0.19,59240.0,59237.0,0.11557949]
[1723725849061,0.19,59240.0,59238.0,0.38325336]
[1723725849062,0.084399,59239.0,59238.0,0.38325336]
[1723725849254,0.763798,59239.0,59238.0,0.22668841]
[1723725849454,1.894637,59239.0,59238.0,0.21283496]
[1723725849654,1.894637,59239.0,59238.0,0.11379764]
[1723725849853,1.894637,59239.0,59223.0,0.13210254]
[1723725849854,1.64144,59239.0,59232.0,0.09903732]
[1723725850164,0.894616,59233.0,59232.0,0.08258823]
[1723725850367,0.894616,59233.0,59231.0,0.08258823]
[1723725850368,0.253227,59232.0,59231.0,0.08258823]
[1723725850667,0.253233,59231.0,59230.0,0.00025317]
[1723725850871,0.773233,59231.0,59230.0,0.00025317]
[1723725851163,1.679713,59231.0,59230.0,0.00025317]
[1723725851560,0.084419,59225.0,59218.0,0.09909629]
[1723725851760,0.084419,59225.0,59204.0,0.13210254]
[1723725851761,0.084429,59218.0,59217.0,0.07273935]
[1723725851958,0.084429,59218.0,59215.0,0.07273935]
[1723725851959,0.168864,59216.0,59215.0,0.07273935]
[1723725852156,0.00088,59218.0,59214.0,0.09909629]
[1723725852356,0.084431,59217.0,59215.0,0.09909629]
[1723725852554,0.084431,59217.0,59216.0,0.09909629]
[1723725852854,0.084428,59219.0,59216.0,0.09909629]
[1723725853063,0.365,59224.0,59216.0,0.09909629]
[1723725853064,0.00025317,59222.0,59216.0,0.09909629]
[1723725853264,0.084427,59220.0,59217.0,0.09909629]
[1723725853460,0.094427,59220.0,59215.0,0.09909629]
[1723725853660,0.084433,59216.0,59211.0,0.18353429]
[1723725853958,0.084427,59220.0,59211.0,0.18353429]
[1723725854161,0.094427,59220.0,59211.0,0.09909629]
[1723725854359,0.094427,59220.0,59212.0,0.09809731]
[1723725854559,0.094427,59220.0,59213.0,0.09809731]
[1723725854758,0.094427,59220.0,59214.0,0.09809731]
[1723725854961,0.084432,59216.0,59215.0,0.09809731]
[1723725855175,0.5208,59216.0,59210.0,0.00025317]
[1723725855471,0.445239,59211.0,59210.0,0.00025317]
[1723725855654,0.539678,59211.0,59210.0,0.09836229]
[1723725855968,0.624117,59211.0,59210.0,0.09836229]
[1723725856165,0.614117,59211.0,59210.0,0.00025317]
[1723725856462,0.08445,59203.0,59202.0,0.3608]
[1723725856670,0.08445,59203.0,59202.0,0.45891817]
[1723725856961,0.08445,59203.0,59202.0,0.45891839]
[1723725857870,0.3289,59203.0,59202.0,0.45891839]
[1723725858068,0.3289,59203.0,59202.0,0.09811839]
[1723725858365,0.621,59203.0,59202.0,0.09811839]
[1723725858751,0.53655,59203.0,59202.0,0.09811839]
[1723725858959,0.53655,59203.0,59197.0,0.00025317]
[1723725858960,0.084458,59198.0,59197.0,0.00025317]
[1723725859161,0.084458,59198.0,59197.0,0.09838245]
[1723725859551,0.084458,59198.0,59197.0,0.09830245]
[1723725859756,0.3608,59206.0,59197.0,0.09830245]
[1723725859958,0.3608,59206.0,59198.0,0.09812928]
[1723725859959,0.3708,59206.0,59198.0,0.09812928]
[1723725860159,0.455246,59206.0,59201.0,0.084453]
[1723725860355,0.3708,59206.0,59202.0,0.09812928]
[1723725860558,0.455246,59206.0,59205.0,0.06623353]
[1723725860763,0.455246,59206.0,59205.0,0.16436281]
[1723725861155,0.455246,59206.0,59205.0,0.06623353]
[1723725861563,0.625246,59206.0,59205.0,0.06623353]
[1723725861958,0.455246,59206.0,59205.0,0.06623353]
[1723725862153,0.3708,59206.0,59205.0,0.06620779]
[1723725862359,0.01,59206.0,59205.0,0.54336688]
[1723725863160,0.02,59212.0,59206.0,0.50672]
[1723725863356,0.445231,59217.0,59213.0,0.084436]
[1723725863661,0.376527,59220.0,59215.0,0.084433]
[1723725863964,0.445222,59224.0,59217.0,0.3608]
[1723725864272,0.29940888,59231.0,59218.0,0.3608]
[1723725864468,0.084414,59229.0,59226.0,0.06614014]
[1723725864765,0.00025338,59230.0,59226.0,0.06614014]
[1723725864957,0.00025338,59230.0,59228.0,0.084415]
[1723725865165,0.00025338,59230.0,59229.0,0.15055314]
[1723725865358,0.00025338,59230.0,59229.0,0.084413]
[1723725865563,0.14025338,59230.0,59224.0,0.3608]
[1723725865761,0.376518,59226.0,59225.0,0.09807278]
[1723725867870,0.084418,59226.0,59225.0,0.09807278]
[1723725868572,0.08466538,59230.0,59225.0,0.09807278]
[1723725868773,0.08466538,59230.0,59229.0,0.06612518]
[1723725869071,0.084413,59229.0,59228.0,0.06612518]
[1723725869274,0.084413,59229.0,59228.0,0.06612292]
[1723725869570,0.084413,59229.0,59224.0,0.44522]
[1723725869774,0.084415,59228.0,59225.0,0.09807807]
[1723725870072,0.084415,59228.0,59226.0,0.09807807]
[1723725870269,0.084416,59227.0,59224.0,0.3608]
[1723725870472,0.084418,59226.0,59225.0,0.09807816]
[1723725870672,0.08442,59224.0,59218.0,0.0016]
[1723725870869,0.08442,59224.0,59215.0,0.09934967]
[1723725870870,0.084428,59219.0,59215.0,0.00025338]
[1723725871080,0.29298,59226.0,59217.0,0.12864533]
[1723725871266,0.29298,59226.0,59224.0,0.0661374]
[1723725871468,0.084419,59225.0,59224.0,0.0661374]
[1723725871659,0.29,59225.0,59222.0,0.0661374]
[1723725871864,0.29,59225.0,59215.0,0.00025338]
[1723725871865,0.084432,59216.0,59215.0,0.00025338]
[1723725872061,0.600964,59216.0,59215.0,0.09834329]
[1723725872378,0.460964,59216.0,59215.0,0.0664246]
[1723725872576,0.640964,59216.0,59215.0,0.00025338]
[1723725873171,0.546532,59216.0,59215.0,0.00025338]
[1723725873371,0.776532,59216.0,59215.0,0.0664246]
[1723725873963,0.546532,59216.0,59215.0,0.0664246]
[1723725874173,0.546532,59216.0,59215.0,0.00025338]
[1723725874384,0.546532,59216.0,59215.0,0.06643372]
[1723725874385,0.640964,59216.0,59215.0,0.06643372]
[1723725874675,0.640964,59216.0,59189.0,0.2921]
[1723725874676,0.50664,59215.0,59210.0,0.04964795]
[1723725874877,0.2921,59213.0,59206.0,0.06619726]
[1723725875074,0.244436,59213.0,59210.0,0.3608]
[1723725875274,0.3021,59219.0,59214.0,0.084435]
[1723725875463,0.536528,59219.0,59215.0,0.3608]
[1723725875668,0.4521,59219.0,59218.0,0.06617097]
[1723725875978,0.24,59221.0,59218.0,0.3608]
[1723725876173,0.3608,59235.0,59218.0,0.3608]
[1723725876174,0.2921,59245.0,59219.0,0.8174105]
[1723725876375,0.16,59245.0,59242.0,0.04958001]
[1723725876673,0.15,59245.0,59243.0,0.14762512]
[1723725876878,0.234391,59245.0,59241.0,0.0661072]
[1723725877072,0.084393,59244.0,59242.0,0.0661072]
[1723725877266,0.16,59244.0,59240.0,0.3608]
[1723725877580,0.244392,59244.0,59243.0,0.06608502]
[1723725877773,0.244392,59244.0,59243.0,0.16413668]
[1723725878175,0.254392,59244.0,59243.0,0.09805166]
[1723725878868,0.244392,59244.0,59243.0,0.09805166]
[1723725879381,0.084396,59241.0,59240.0,0.06608502]
[1723725879583,0.084401,59238.0,59237.0,0.00025338]
[1723725879767,0.376501,59238.0,59237.0,0.09831417]
[1723725880265,0.376501,59238.0,59237.0,0.1644061]
[1723725880463,0.376501,59238.0,59237.0,0.04957626]
[1723725880464,0.5821,59238.0,59237.0,0.04957626]
[1723725880675,0.5821,59238.0,59226.0,0.3608]
[1723725880676,0.084409,59232.0,59231.0,0.06609193]
[1723725880869,0.084415,59228.0,59227.0,0.06609193]
[1723725881070,0.084418,59226.0,59217.0,0.445229]
[1723725881370,0.084419,59225.0,59224.0,0.06613007]
[1723725881568,0.08442,59224.0,59223.0,0.06613007]
[1723725881775,0.3021,59225.0,59222.0,0.06613007]
[1723725881776,0.084422,59223.0,59222.0,0.06613007]
[1723725882077,0.08467038,59227.0,59222.0,0.06613007]
[1723725882274,0.084418,59226.0,59223.0,0.06613007]
[1723725882576,0.001,59225.0,59224.0,0.012]
[1723725882778,0.001,59225.0,59224.0,0.45722]
[1723725883078,0.00025338,59227.0,59226.0,0.084418]
[1723725883271,0.00025338,59227.0,59226.0,0.18249709]
[1723725883580,0.00025338,59227.0,59226.0,0.09807909]
[1723725883781,0.00025338,59227.0,59224.0,0.012]
[1723725884082,0.376519,59225.0,59224.0,0.012]
[1723725884280,0.084419,59225.0,59224.0,0.09808143]
[1723725884473,0.084419,59225.0,59224.0,0.0980786]
[1723725884677,0.00125338,59227.0,59224.0,0.1824986]
[1723725884972,0.08466938,59227.0,59226.0,0.06611534]
[1723725885281,0.08566938,59227.0,59226.0,0.16419394]
[1723725885580,0.08566938,59227.0,59226.0,0.0980786]
[1723725885880,0.00125338,59227.0,59226.0,0.15053334]
[1723725886071,0.00125338,59227.0,59226.0,0.590938]
[1723725886381,0.00125338,59227.0,59226.0,0.68901165]
[1723725886690,0.00125338,59227.0,59226.0,0.18249165]
[1723725886981,0.27566938,59227.0,59226.0,0.09807241]
[1723725887175,0.084418,59226.0,59224.0,0.16708928]
[1723725887380,0.00125338,59227.0,59225.0,0.09807418]
[1723725887575,0.00125338,59227.0,59226.0,0.084418]
[1723725887877,0.084422,59223.0,59222.0,0.44346928]
[1723725888067,0.168844,59223.0,59222.0,0.4588812]
[1723725888273,0.318844,59223.0,59222.0,0.3608]
[1723725888476,0.168844,59223.0,59222.0,0.3608]
[1723725888687,0.168844,59223.0,59222.0,0.42695199]
[1723725889075,0.178844,59223.0,59222.0,0.3608]
[1723725889368,0.179844,59223.0,59222.0,0.44095199]
[1723725889772,0.169844,59223.0,59222.0,0.44095199]
[1723725889973,0.179844,59223.0,59222.0,0.44095199]
[1723725890172,0.179844,59223.0,59222.0,0.3748]
[1723725890583,0.424266,59223.0,59222.0,0.08022134]
[1723725890885,0.424266,59223.0,59222.0,0.014]
[1723725891079,0.424266,59223.0,59222.0,0.013]
[1723725891474,1.330826,59223.0,59222.0,0.013]
[1723725892492,0.253275,59221.0,59220.0,0.04969616]
[1723725892672,1.3943,59221.0,59220.0,1.6e-07]
[1723725892873,1.7943,59221.0,59220.0,1.6e-07]
[1723725893278,0.55,59221.0,59218.0,0.084429]
[1723725893583,0.38,59221.0,59217.0,0.08443]
[1723725893783,0.38,59221.0,59218.0,0.08266928]
[1723725894085,0.79323338,59227.0,59218.0,0.08266928]
[1723725894086,0.084411,59231.0,59219.0,0.22673673]
[1723725894269,0.084411,59231.0,59227.0,0.08280431]
[1723725894270,0.084415,59229.0,59227.0,0.08280431]
[1723725894473,0.344415,59229.0,59227.0,0.08280431]
[1723725894675,0.084415,59228.0,59227.0,0.08280431]
[1723725894876,0.05,59228.0,59227.0,0.08280431]
[1723725895478,0.05,59228.0,59226.0,0.16722031]
[1723725895676,0.05,59228.0,59225.0,0.08280431]
[1723725896172,0.051,59228.0,59225.0,0.08280431]
[1723725896880,0.051,59228.0,59226.0,0.08280431]
[1723725897085,0.051,59228.0,59225.0,0.08280431]
[1723725897086,0.084417,59227.0,59225.0,0.08280431]
[1723725897277,0.084418,59226.0,59225.0,0.08280431]
[1723725897582,0.134418,59226.0,59225.0,0.08280431]
[1723725898279,0.168838,59225.0,59224.0,0.08281542]
[1723725898478,0.084422,59223.0,59222.0,0.06627171]
[1723725898796,0.168846,59222.0,59221.0,0.06627171]
[1723725898978,0.698846,59222.0,59221.0,0.06627171]
[1723725899284,0.084428,59219.0,59216.0,0.06552509]
[1723725899585,0.82176,59217.0,59216.0,0.00025338]
[1723725899783,1.35176,59217.0,59216.0,0.00025338]
[1723725900678,1.43619,59217.0,59216.0,0.00025338]
[1723725901080,1.35176,59217.0,59216.0,0.00025338]
[1723725901289,0.97523,59217.0,59216.0,0.00025338]
[1723725901785,0.97623,59217.0,59216.0,0.01425338]
[1723725901983,1.06066,59217.0,59216.0,0.01425338]
[1723725902285,0.97723,59217.0,59216.0,0.01725338]
[1723725902675,0.80723,59217.0,59216.0,0.01725338]
[1723725902887,0.7228,59217.0,59216.0,0.01725338]
[1723725903184,0.30286631,59217.0,59216.0,0.145909]
[1723725903385,0.30286631,59217.0,59216.0,0.14591349]
[1723725904176,0.30286631,59217.0,59216.0,0.24400693]
[1723725904779,0.38729631,59217.0,59216.0,0.24400693]
[1723725904977,0.90382631,59217.0,59216.0,0.10008249]
[1723725905175,0.90382631,59217.0,59216.0,0.01725338]
[1723725906183,0.81939631,59217.0,59216.0,0.11535589]
[1723725906385,0.44286631,59217.0,59216.0,0.11535589]
[1723725906683,0.44286631,59217.0,59216.0,0.19978789]
[1723725906979,0.44286631,59217.0,59216.0,0.11535589]
[1723725907177,0.44286631,59217.0,59216.0,0.19821794]
[1723725907376,0.30286631,59217.0,59216.0,0.19821794]
[1723725907677,0.65378,59222.0,59221.0,0.084425]
[1723725907678,0.00088,59222.0,59221.0,0.084425]
[1723725907878,0.01,59222.0,59221.0,0.31118358]
[1723725908081,0.01,59228.0,59221.0,0.51448358]
[1723725908276,0.02,59228.0,59227.0,0.08286553]
[1723725908477,0.104415,59228.0,59227.0,0.30958494]
[1723725908881,0.18883,59228.0,59227.0,0.30958494]
[1723725909074,0.18883,59228.0,59227.0,0.1809446]
[1723725909280,0.18883,59228.0,59220.0,0.3608]
[1723725909281,0.08442,59224.0,59223.0,0.09941238]
[1723725909480,0.10442,59224.0,59223.0,0.22672053]
[1723725910189,0.18884,59224.0,59223.0,0.32613291]
[1723725910371,0.18884,59224.0,59223.0,0.22672053]
[1723725910576,0.18884,59224.0,59223.0,0.18106192]
[1723725910986,0.18884,59224.0,59223.0,0.09808135]
[1723725911189,0.10442,59224.0,59223.0,0.09808135]
[1723725911389,0.02,59224.0,59223.0,0.23673121]
[1723725911995,0.02,59224.0,59223.0,0.68195321]
[1723725912291,0.3608,59230.0,59228.0,0.084415]
[1723725912589,0.3608,59230.0,59229.0,0.18105229]
[1723725912590,0.605212,59230.0,59229.0,0.18105229]
[1723725912785,0.5208,59230.0,59229.0,0.18105229]
[1723725912993,0.01,59230.0,59229.0,0.62626529]
[1723725913178,0.00025338,59233.0,59232.0,0.084409]
[1723725913382,0.00025338,59233.0,59232.0,0.31112502]
[1723725913786,0.08466138,59233.0,59232.0,0.22671602]
[1723725914180,0.00025338,59233.0,59232.0,0.22671602]
[1723725914381,0.2921,59245.0,59232.0,0.58751602]
[1723725914583,0.4521,59245.0,59238.0,0.1672919]
[1723725914779,0.084396,59241.0,59240.0,0.0828919]
[1723725914981,0.234396,59241.0,59240.0,0.18094559]
[1723725915183,0.234396,59241.0,59240.0,0.09807982]
[1723725915584,0.084398,59240.0,59238.0,0.08286577]
[1723725915781,0.084398,59240.0,59239.0,0.18092298]
[1723725915782,0.168796,59240.0,59239.0,0.18092298]
[1723725915982,0.168802,59238.0,59237.0,0.08286577]
[1723725916189,0.168802,59238.0,59237.0,0.18092832]
[1723725916190,0.178802,59238.0,59237.0,0.18092832]
[1723725916391,0.178802,59238.0,59237.0,0.09806255]
[1723725916592,0.318802,59238.0,59237.0,0.09806255]
[1723725916796,0.234401,59238.0,59237.0,0.09806255]
[1723725917793,0.001,59241.0,59237.0,0.09806255]
[1723725917994,0.161,59241.0,59238.0,0.11206255]
[1723725918188,0.161,59241.0,59239.0,0.09806255]
[1723725918391,0.244397,59241.0,59240.0,0.09806255]
[1723725918588,0.3608,59244.0,59240.0,0.09806255]
[1723725918893,0.3608,59244.0,59238.0,0.58926577]
[1723725918894,0.00022542,59246.0,59245.0,0.084391]
[1723725919094,0.3608,59256.0,59245.0,1.07021899]
[1723725919294,0.3608,59256.0,59251.0,0.08276007]
[1723725919486,0.3608,59256.0,59253.0,0.08276007]
[1723725919790,0.3608,59256.0,59255.0,0.084376]
[1723725919991,0.3608,59256.0,59255.0,0.18241295]
[1723725920188,0.3608,59256.0,59252.0,0.08276007]
[1723725920189,0.29955185,59270.0,59254.0,0.08276007]
[1723725920397,0.29955185,59270.0,59260.0,0.3608]
[1723725920398,0.00745185,59270.0,59260.0,0.3608]
[1723725920587,0.3608,59275.0,59267.0,0.3608]
[1723725920785,0.084342,59279.0,59277.0,0.084345]
[1723725921099,0.084336,59284.0,59280.0,0.08434]
[1723725921284,0.3608,59290.0,59277.0,0.3608]
[1723725921486,0.084331,59287.0,59283.0,0.3608]
[1723725921694,0.084332,59286.0,59283.0,0.3608]
[1723725922194,0.084335,59284.0,59283.0,0.3608]
[1723725922382,0.084329,59289.0,59283.0,0.3608]
[1723725922591,0.084311,59302.0,59288.0,0.3608]
[1723725922896,0.3608,59303.0,59293.0,0.3608]
[1723725923100,0.3608,59303.0,59293.0,0.445122]
[1723725923284,0.3608,59303.0,59293.0,0.3608]
[1723725923285,0.084318,59296.0,59293.0,0.3608]
[1723725923697,0.29962284,59312.0,59292.0,0.00025317]
[1723725923698,0.084322,59293.0,59292.0,0.00025317]
[1723725923895,0.737222,59293.0,59292.0,0.00025317]
[1723725924108,0.737222,59293.0,59282.0,0.3608]
[1723725924109,0.084336,59283.0,59282.0,0.3608]
[1723725924491,0.2921,59287.0,59280.0,0.002]
[1723725924492,0.084339,59281.0,59280.0,0.002]
[1723725924797,0.084339,59281.0,59271.0,0.3608]
[1723725924798,0.2921,59281.0,59271.0,0.3608]
[1723725924992,0.084349,59274.0,59271.0,0.3608]
[1723725925304,0.084352,59272.0,59271.0,0.3608]
[1723725925500,0.168704,59272.0,59271.0,0.3608]
[1723725925795,0.168704,59272.0,59263.0,0.36094636]
[1723725925796,0.084364,59264.0,59263.0,0.00014636]
[1723725925989,0.737264,59264.0,59263.0,0.00014636]
[1723725926390,1.327828,59264.0,59263.0,0.00014636]
[1723725926594,1.347828,59264.0,59263.0,0.00014636]
[1723725926797,1.747828,59264.0,59263.0,0.00014636]
[1723725926991,0.821628,59264.0,59263.0,0.00014636]
[1723725927193,1.327828,59264.0,59263.0,0.00014636]
[1723725927688,1.477828,59264.0,59263.0,0.00014636]
[1723725927891,1.327828,59264.0,59263.0,0.00014636]
[1723725928099,0.445164,59264.0,59263.0,0.00014636]
[1723725928508,0.53798623,59264.0,59263.0,0.00314636]
[1723725928694,0.529528,59264.0,59263.0,0.00714636]
[1723725929204,0.529528,59264.0,59263.0,0.00514636]
[1723725929706,0.445164,59264.0,59263.0,0.00514636]
[1723725930597,0.529527,59264.0,59263.0,0.00514636]
[1723725930796,0.529527,59264.0,59263.0,0.00814636]
[1723725930797,0.529526,59264.0,59263.0,0.00814636]
[1723725931298,0.445163,59264.0,59263.0,0.00814636]
[1723725931498,0.3608,59272.0,59263.0,0.00414636]
[1723725931711,0.3608,59272.0,59263.0,0.01314636]
[1723725931890,0.084318,59297.0,59271.0,0.3608]
[1723725932095,0.15,59296.0,59283.0,0.445136]
[1723725932401,0.15,59296.0,59283.0,0.3608]
[1723725932609,0.15,59296.0,59287.0,0.084331]
[1723725932897,0.23,59298.0,59283.0,0.3608]
[1723725932898,0.36176001,59300.0,59288.0,0.084329]
[1723725933101,0.084318,59296.0,59288.0,0.3608]
[1723725933304,0.084316,59298.0,59291.0,0.084325]
[1723725933599,0.3608,59300.0,59288.0,0.3608]
[1723725933798,0.084318,59296.0,59288.0,0.3608]
[1723725933992,0.3608,59300.0,59288.0,0.3608]
[1723725934205,0.6629,59300.0,59288.0,0.3608]
[1723725934394,0.3608,59295.0,59288.0,0.3608]
[1723725935003,0.084321,59294.0,59286.0,0.00025294]
[1723725935193,0.168662,59287.0,59286.0,0.00025294]
[1723725935395,1.5868,59287.0,59272.0,0.3608]
[1723725935696,0.084351,59273.0,59272.0,0.3608]
[1723725936405,0.084342,59279.0,59272.0,0.3608]
[1723725936406,0.084346,59277.0,59272.0,0.3608]
[1723725936710,0.084351,59273.0,59272.0,0.3608]
[1723725937101,0.084351,59273.0,59267.0,0.00025294]
[1723725937300,0.084358,59268.0,59267.0,0.00025294]
[1723725938408,0.084353,59272.0,59267.0,0.01425294]
[1723725938705,0.084302,59308.0,59298.0,0.084315]
[1723725938898,0.08432,59295.0,59293.0,0.3608]
[1723725939197,0.36,59308.0,59293.0,0.7216]
[1723725939198,0.2921,59306.0,59293.0,0.7216]
[1723725939397,0.7721,59306.0,59293.0,0.7216]
[1723725939600,0.084316,59298.0,59293.0,0.7216]
[1723725940002,0.2921,59306.0,59293.0,0.7216]
[1723725940205,0.8221,59306.0,59293.0,0.7216]
[1723725940409,0.2921,59300.0,59293.0,0.7216]
[1723725940704,0.3321,59300.0,59293.0,0.7216]
[1723725940909,0.002,59298.0,59293.0,0.7216]
[1723725941507,0.002,59298.0,59293.0,0.7226]
[1723725942007,0.002,59298.0,59293.0,0.7216]
[1723725942215,0.084321,59294.0,59293.0,0.7216]
[1723725942416,0.364321,59294.0,59290.0,0.00025294]
[1723725942607,0.084341,59280.0,59279.0,0.3608]
[1723725943814,0.084349,59275.0,59272.0,0.3608]
[1723725944015,0.084349,59275.0,59274.0,0.00025294]
[1723725944016,0.084348,59275.0,59274.0,0.00025294]
[1723725944217,0.630796,59275.0,59274.0,0.00025294]
[1723725944404,1.536916,59275.0,59274.0,0.00025294]
[1723725944611,1.62985699,59275.0,59274.0,0.00025294]
[1723725945414,1.62985699,59275.0,59274.0,0.01125294]
[1723725945911,0.094348,59275.0,59274.0,0.01125294]
[1723725946112,0.264348,59275.0,59274.0,0.01125294]
[1723725946307,0.264348,59275.0,59274.0,0.02525294]
[1723725946717,1.254816,59275.0,59274.0,0.02525294]
[1723725947118,1.254816,59275.0,59274.0,0.01425294]
[1723725947305,1.256816,59275.0,59274.0,0.00025294]
[1723725947616,1.172468,59275.0,59274.0,0.00225294]
[1723725947828,0.012,59275.0,59274.0,0.00225294]
[1723725948009,0.01,59275.0,59274.0,0.08660194]
[1723725948328,0.3608,59277.0,59274.0,0.09260194]
[1723725948521,0.52834,59291.0,59274.0,0.09260194]
[1723725948522,0.3608,59304.0,59275.0,0.21286884]
[1723725948821,0.3608,59304.0,59291.0,0.3608]
[1723725948822,0.2921,59303.0,59291.0,0.3608]
[1723725949018,0.7821,59303.0,59291.0,0.3608]
[1723725949313,0.7821,59303.0,59297.0,0.3608]
[1723725949502,0.084311,59301.0,59297.0,0.3608]
[1723725949710,0.084313,59300.0,59297.0,0.3608]
[1723725950118,0.084315,59298.0,59297.0,0.3608]
[1723725950407,0.084319,59296.0,59294.0,0.00025294]
[1723725950610,0.254319,59296.0,59294.0,0.00025294]
[1723725951108,0.084319,59295.0,59294.0,0.00025294]
[1723725951304,0.244319,59295.0,59294.0,0.00025294]
[1723725951804,0.002,59296.0,59294.0,0.12873412]
[1723725952008,0.002,59296.0,59295.0,0.48928481]
[1723725952221,0.002,59296.0,59295.0,0.44312425]
[1723725952422,0.002,59296.0,59295.0,0.3608]
[1723725952611,0.266318,59296.0,59295.0,0.3608]
[1723725952820,0.084319,59295.0,59294.0,0.00025294]
[1723725953118,0.002,59296.0,59294.0,0.44537394]
[1723725953505,0.002,59295.0,59294.0,0.36105294]
[1723725954117,0.002,59295.0,59294.0,0.44537394]
[1723725954320,0.2921,59303.0,59294.0,0.36105294]
[1723725954515,0.002,59296.0,59295.0,0.084319]
[1723725954719,0.002,59296.0,59295.0,0.21080672]
[1723725954906,0.002,59296.0,59294.0,0.44337719]
[1723725955223,0.084319,59295.0,59294.0,0.36105294]
[1723725955523,0.078319,59295.0,59294.0,0.36105294]
[1723725955721,0.078319,59295.0,59294.0,0.00025294]
[1723725955918,0.332638,59295.0,59294.0,0.00025294]
[1723725956414,0.332638,59295.0,59283.0,0.44312425]
[1723725956415,0.084332,59286.0,59283.0,0.44312425]
[1723725956621,0.16867,59284.0,59283.0,0.3608]
[1723725956807,0.244335,59284.0,59283.0,0.3608]
[1723725957010,0.254335,59284.0,59283.0,0.3608]
[1723725957210,0.33867,59284.0,59283.0,0.3608]
[1723725957423,0.17,59284.0,59278.0,0.08232425]
[1723725957722,0.084345,59277.0,59275.0,0.3608]
[1723725957920,0.084345,59277.0,59275.0,0.44322887]
[1723725958121,0.094345,59277.0,59275.0,0.44348181]
[1723725958511,0.084345,59277.0,59275.0,0.44348181]
[1723725958709,0.084346,59276.0,59275.0,0.44348181]
[1723725958917,0.144346,59276.0,59275.0,0.58601415]
[1723725959509,0.144346,59276.0,59275.0,0.50358528]
[1723725960213,0.144346,59276.0,59275.0,0.01425294]
[1723725960214,0.398692,59276.0,59275.0,0.01425294]
[1723725960518,0.398692,59276.0,59275.0,0.00025294]
[1723725960519,0.314346,59276.0,59275.0,0.00025294]
[1723725960716,0.00822882,59283.0,59275.0,0.88117294]
[1723725960932,0.24,59283.0,59282.0,0.06600298]
[1723725961219,0.084339,59281.0,59280.0,0.3608]
[1723725961419,0.624339,59281.0,59280.0,0.3608]
[1723725961814,0.708678,59281.0,59280.0,0.3608]
[1723725962009,0.708678,59281.0,59275.0,0.02825294]
[1723725962010,0.54,59281.0,59275.0,0.02825294]
[1723725962212,0.16869,59277.0,59276.0,0.06604693]
[1723725962414,0.16869,59277.0,59275.0,0.02825294]
[1723725962415,0.084346,59276.0,59275.0,0.02825294]
[1723725962628,0.348692,59276.0,59275.0,0.02825294]
[1723725962922,1.231258,59276.0,59275.0,0.09429839]
[1723725963226,1.631258,59276.0,59275.0,0.02725294]
[1723725963523,0.084355,59270.0,59269.0,0.42684545]
[1723725963715,0.284355,59270.0,59269.0,0.42684545]
[1723725963915,0.36871,59270.0,59269.0,0.3608]
[1723725964116,0.36871,59270.0,59269.0,0.42686408]
[1723725964508,0.36871,59270.0,59269.0,0.3608]
[1723725965018,0.36871,59270.0,59269.0,0.3748]
[1723725965521,0.284355,59270.0,59269.0,0.44083942]
[1723725965720,0.284355,59270.0,59269.0,0.3748]
[1723725965921,0.284355,59270.0,59269.0,0.44083763]
[1723725966117,0.284355,59270.0,59269.0,0.3748]
[1723725966914,0.284355,59270.0,59269.0,0.3888]
[1723725967323,0.36871,59270.0,59269.0,0.3888]
[1723725967522,0.284355,59270.0,59269.0,0.3888]
[1723725967922,0.36871,59270.0,59269.0,0.028]
[1723725968121,0.284355,59270.0,59269.0,0.028]
[1723725968322,0.36871,59270.0,59269.0,0.028]
[1723725968832,0.00025294,59275.0,59269.0,0.028]
[1723725968833,0.23633389,59368.0,59269.0,0.3201]
[1723725969130,0.5,59368.0,59367.0,0.3608]
[1723725969327,0.5,59368.0,59362.0,0.3608]
[1723725969328,0.18753181,59367.0,59362.0,0.3608]
[1723725969519,0.18753181,59367.0,59334.0,0.00017046]
[1723725969520,0.3608,59363.0,59342.0,0.41869047]
[1723725969716,0.2921,59349.0,59348.0,0.3608]
[1723725969919,0.2921,59349.0,59342.0,0.3608]
[1723725969920,0.27,59349.0,59342.0,0.3608]
[1723725970122,0.2921,59343.0,59336.0,0.3608]
[1723725970332,0.3608,59364.0,59342.0,0.3608]
[1723725970515,0.8108,59359.0,59342.0,0.3608]
[1723725970831,0.2921,59346.0,59342.0,0.3608]
[1723725971516,0.3608,59345.0,59336.0,0.3748]
[1723725971723,0.2921,59337.0,59336.0,0.014]
[1723725971928,0.2921,59337.0,59334.0,0.00017046]
[1723725972132,0.2921,59337.0,59320.0,0.3608]
[1723725972133,0.7977,59336.0,59320.0,0.3608]
[1723725972317,0.2921,59321.0,59320.0,0.3608]
[1723725973026,0.2921,59321.0,59315.0,0.3608]
[1723725973027,0.292237,59321.0,59315.0,0.3608]
[1723725973226,0.2921,59316.0,59315.0,0.3608]
[1723725973426,0.2921,59316.0,59315.0,0.36105265]
[1723725973728,0.79786,59316.0,59315.0,0.36105265]
[1723725974321,0.000137,59321.0,59315.0,0.36105265]
[1723725974522,0.000137,59321.0,59320.0,0.3608]
[1723725974923,0.000137,59321.0,59320.0,0.3748]
[1723725974924,0.505857,59321.0,59320.0,0.3748]
[1723725975224,0.000137,59321.0,59320.0,0.3748]
[1723725975428,0.00025201,59326.0,59325.0,0.084277]
[1723725975628,0.2921,59339.0,59338.0,0.084258]
[1723725975830,0.23616,59345.0,59338.0,0.3608]
[1723725976031,0.23616,59345.0,59344.0,0.3608]
[1723725976331,0.6529,59352.0,59344.0,0.445049]
[1723725976519,5.149e-05,59345.0,59344.0,0.3608]
[1723725977931,0.084251,59343.0,59342.0,1e-08]
[1723725978426,0.989771,59343.0,59342.0,1e-08]
[1723725979024,0.084251,59343.0,59342.0,1e-08]
[1723725979419,5.149e-05,59345.0,59342.0,1e-08]
[1723725979625,5.149e-05,59345.0,59342.0,0.00300001]
[1723725979822,0.084251,59343.0,59342.0,0.00300001]